{"text_format":"3","workbook":"xlsx","n_sheets":1,"sheets":["Ofimática Office 365"],"not_rendered":{"charts":3,"images":4},"read":"whole","date_system":"1900"}

{"sheet":"Ofimática Office 365","index":0,"n_rows":84,"n_cols":9,"rows_kept":84,"merged":[[36,0,36,1],[43,0,43,1],[49,0,49,1],[54,0,54,1],[58,0,58,1],[61,0,61,1],[73,0,73,1]]}
{"$rows_empty":24}
["Nombre","Apellido Paterno","Apellido Materno","Cuenta","Clase","Materia","Calificación Primer Semestre","Calificación Segundo Semestre","Participaciones"]
["Christian","lopez","Mateo","Número de Cuenta 109003545","B","Ciencias",{"v":8,"d":"8.00"},{"v":7,"d":"7.00"},5]
["Leonardo","Reyes","Huerta","Número de Cuenta 109003546","A","Matemáticas",{"v":6.5,"d":"6.50"},{"v":10,"d":"10.00"},8]
["Luis","Rivera","Zuñiga","Número de Cuenta 109003547","C","Letras",{"v":5,"d":"5.00"},{"v":5,"d":"5.00"},15]
["Santiago","Tovitas","Guerrero","Número de Cuenta 109003548","A","Ciencias",{"v":9.5,"d":"9.50"},{"v":10,"d":"10.00"},3]
["Yahir","Rosales","Gonzales","Número de Cuenta 109003549","A","Letras",{"v":6,"d":"6.00"},{"v":8,"d":"8.00"},6]
["Ximena","Martinez","Tovar","Número de Cuenta 109003550","C","Matemáticas",{"v":6,"d":"6.00"},{"v":9,"d":"9.00"},21]
["Miranda","Gonzalez","Ortiz","Número de Cuenta 109003551","B","Letras",{"v":7.5,"d":"7.50"},{"v":10,"d":"10.00"},18]
["Ashly","Rodriguez","Gonzalez","Número de Cuenta 109003552","C","Letras",{"v":8.5,"d":"8.50"},{"v":9.5,"d":"9.50"},19]
["Renata","Solis","Escareño","Número de Cuenta 109003553","A","Ciencias",{"v":10,"d":"10.00"},{"v":8,"d":"8.00"},14]
["Nicole","Zavala","Robledo","Número de Cuenta 109003554","B","Matemáticas",{"v":7,"d":"7.00"},{"v":6,"d":"6.00"},7]
[]
[" Estadisticas primer semestre "]
[" Promedio ",{"$f":"AVERAGE(Tabla1[Calificación Primer Semestre])","v":{"v":7.4,"d":"7.40"}}]
["Maxima",{"$f":"MAX(Tabla1[Calificación Primer Semestre])","v":{"v":10,"d":"10.00"}}]
["Minima",{"$f":"MIN(Tabla1[Calificación Primer Semestre])","v":{"v":5,"d":"5.00"}}]
["Total de alumnos",{"$f":"COUNT(Tabla1[Calificación Primer Semestre])","v":10}]
[]
[]
["Promedio por materia"]
["Letras",{"$f":"AVERAGEIF(Tabla1[Materia],A45,Tabla1[Calificación Primer Semestre])","v":6.75}]
["Ciencias",{"$f":"AVERAGEIF(Tabla1[Materia],A46,Tabla1[Calificación Primer Semestre])","v":9.166666666666666}]
["Matemáticas",{"$f":"AVERAGEIF(Tabla1[Materia],A47,Tabla1[Calificación Primer Semestre])","v":6.5}]
[]
[]
["Promedio por clase"]
["A",{"$f":"AVERAGEIF(Tabla1[Clase],A51,Tabla1[Calificación Primer Semestre])","v":8}]
["B",{"$f":"AVERAGEIF(Tabla1[Clase],A52,Tabla1[Calificación Primer Semestre])","v":7.5}]
["C",{"$f":"AVERAGEIF(Tabla1[Clase],A53,Tabla1[Calificación Primer Semestre])","v":6.5}]
[]
["Alumno","Clave","Calificación"]
["Nicole",{"$f":"LOOKUP(A56,Tabla1[Nombre],Tabla1[Clase])","v":"C"},{"$f":"LOOKUP(A56,Tabla1[Nombre],Tabla1[Calificación Primer Semestre])","v":5}]
["Leonardo ",{"$f":"LOOKUP(A57,Tabla1[Nombre],Tabla1[Clase])","v":"A"},{"$f":"LOOKUP(A57,Tabla1[Nombre],Tabla1[Calificación Primer Semestre])","v":6.5}]
[]
["Alumnos con calificación mayor o igual a 7 "]
[{"$f":"COUNTIF(Tabla1[Calificación Primer Semestre],\">=\"&7)","v":6}]
[]
["Examen de recuperación",null,"Examen Final"]
[{"$f":"A26","v":"Christian"},{"$f":"G26>H26","v":true},{"$f":"AVERAGE(G26,H26)<8","v":true}]
[{"$f":"A27","v":"Leonardo"},{"$f":"G27>H27","v":false},{"$f":"AVERAGE(G27,H27)<8","v":false}]
["Luis",false,true]
["Santiago",false,false]
["Yahir",false,true]
["Ximena",false,true]
["Miranda",false,false]
["Ashly",false,false]
["Renata",true,false]
["Nicole",true,true]
[]
["Alumnos ","Cuentas "]
[{"$f":"A26&\" \"&B26&\" \"&C26","v":"Christian lopez Mateo"},{"$f":"RIGHT(D26,10)","v":" 109003545"}]
[{"$f":"A27&\" \"&B27&\" \"&C27","v":"Leonardo Reyes Huerta"},{"$f":"RIGHT(D27,10)","v":" 109003546"}]
["Luis Rivera Zuñiga"," 109003547"]
["Santiago Tovitas Guerrero"," 109003548"]
["Yahir Rosales Gonzales"," 109003549"]
["Ximena Martinez Tovar"," 109003550"]
["Miranda Gonzalez Ortiz"," 109003551"]
["Ashly Rodriguez Gonzalez"," 109003552"]
["Renata Solis Escareño"," 109003553"]
["Nicole Zavala Robledo"," 109003554"]